{"text_format":"1","workbook":"xlsx","n_sheets":8,"sheets":["Calculator NL","Calculateur FR","Products","Portefeuille NL","Portefeuille FR","Gebruiksaanwijzing","Mode d'emploi","DEVELOPMENT TAB"],"not_rendered":{"charts":0,"images":18,"macros":1,"external_links":0,"defined_names":5,"comments":0,"pivot_tables":0},"unopened":[],"bounds":{"document_bytes":16777216,"sheet_cells":100000,"rows_first":2000,"rows_last":500,"rows_between":2000,"halvings":0,"cell_chars":16384,"cell_head_chars":4096},"cells_cut":0,"cells_raw":0,"read":"whole","date_system":"1900"}

{"sheet":"Calculator NL","index":0,"n_rows":48,"n_cols":10,"rows_kept":48,"cut":false,"hidden":false,"merged":[[7,8,7,9],[6,8,6,9],[6,6,6,7],[7,6,7,7],[44,3,44,7],[9,4,9,7],[47,1,47,9],[46,1,46,9],[38,4,38,5],[39,4,39,5],[40,4,40,5],[41,4,41,5],[42,4,42,5],[4,4,4,5],[34,4,34,5],[35,4,35,5],[36,4,36,5],[37,4,37,5],[32,3,32,6],[6,3,6,5],[7,3,7,5],[26,3,26,6]]}
[]
[]
[]
[]
[null,null,null,"Naam gebruiker","Stomagebruiker 1"]
[]
[null,null,null,"TYPE",null,null,"PERIODE",null,"SOORT STOMA"]
[{"$f":"_xlfn.CONCAT(D8,G8,I8,)","v":"Convex/ConcaafOpvolgfaseColostoma"},null,null,"Convex/Concaaf",null,null,"Opvolgfase",null,"Colostoma"]
[]
[null,null,null,"Keuze:",{"$f":"_xlfn.IFNA(IF(VLOOKUP(A8,'Portefeuille NL'!A:H,8,FALSE)=0,\"\",(VLOOKUP(A8,'Portefeuille NL'!A:H,8,FALSE))),\"GEEN GELDIGE KEUZE\")","v":"655550 - Colostoma - opvolgfase - Convex/Concaaf"}]
[null,null,null,"Portefeuille waarde",null,null,{"$f":"_xlfn.IFNA(VLOOKUP(A8,'Portefeuille NL'!A:H,7,FALSE),\"0\")","v":810.47}]
[null,null,null,"Reeds gespendeerd bedrag"]
[]
[null,null,null,"Artikelnummer","Lijstnummer","ID-nummer","Aantal eenheden","Artikelomschrijving","Aantal/doos","Publieksprijs incl. btw"]
[null,null,null,"62140J",{"$f":"_xlfn.IFNA(VLOOKUP(D15,Products!A:F,6,FALSE),\"\")","v":"906009"},{"$f":"_xlfn.IFNA(VLOOKUP(D15,Products!A:G,7,FALSE),\"\")","v":"906009000023"},"10",{"$f":"_xlfn.IFNA(VLOOKUP(D15,Products!A:E,2,FALSE),\"\")","v":"FLEXIMA KEY COLO BGE 40"},{"$f":"_xlfn.IFNA(VLOOKUP(D15,Products!A:E,3,FALSE),\"\")","v":30},{"$f":"_xlfn.IFNA(VLOOKUP(D15,Products!A:E,5,FALSE) / I15 *G15,\"\")","v":19.504000000000005}]
[null,null,null,null,{"$f":"_xlfn.IFNA(VLOOKUP(D16,Products!A:F,6,FALSE),\"\")","v":""},{"$f":"_xlfn.IFNA(VLOOKUP(D16,Products!A:G,7,FALSE),\"\")","v":""},null,{"$f":"_xlfn.IFNA(VLOOKUP(D16,Products!A:E,2,FALSE),\"\")","v":""},{"$f":"_xlfn.IFNA(VLOOKUP(D16,Products!A:E,3,FALSE),\"\")","v":""},{"$f":"_xlfn.IFNA(VLOOKUP(D16,Products!A:E,5,FALSE) / I16 *G16,\"\")","v":""}]
[null,null,null,"044040J",{"$f":"_xlfn.IFNA(VLOOKUP(D17,Products!A:F,6,FALSE),\"\")","v":"906001"},{"$f":"_xlfn.IFNA(VLOOKUP(D17,Products!A:G,7,FALSE),\"\")","v":"906001000055"},"5",{"$f":"_xlfn.IFNA(VLOOKUP(D17,Products!A:E,2,FALSE),\"\")","v":"FLEXIMA COLO BEIGE 40MM SCG"},{"$f":"_xlfn.IFNA(VLOOKUP(D17,Products!A:E,3,FALSE),\"\")","v":30},{"$f":"_xlfn.IFNA(VLOOKUP(D17,Products!A:E,5,FALSE) / I17 *G17,\"\")","v":16.271000000000001}]
[null,null,null,null,{"$f":"_xlfn.IFNA(VLOOKUP(D18,Products!A:F,6,FALSE),\"\")","v":""},{"$f":"_xlfn.IFNA(VLOOKUP(D18,Products!A:G,7,FALSE),\"\")","v":""},null,{"$f":"_xlfn.IFNA(VLOOKUP(D18,Products!A:E,2,FALSE),\"\")","v":""},{"$f":"_xlfn.IFNA(VLOOKUP(D18,Products!A:E,3,FALSE),\"\")","v":""},{"$f":"_xlfn.IFNA(VLOOKUP(D18,Products!A:E,5,FALSE) / I18 *G18,\"\")","v":""}]
[null,null,null,null,{"$f":"_xlfn.IFNA(VLOOKUP(D19,Products!A:F,6,FALSE),\"\")","v":""},{"$f":"_xlfn.IFNA(VLOOKUP(D19,Products!A:G,7,FALSE),\"\")","v":""},null,{"$f":"_xlfn.IFNA(VLOOKUP(D19,Products!A:E,2,FALSE),\"\")","v":""},{"$f":"_xlfn.IFNA(VLOOKUP(D19,Products!A:E,3,FALSE),\"\")","v":""},{"$f":"_xlfn.IFNA(VLOOKUP(D19,Products!A:E,5,FALSE) / I19 *G19,\"\")","v":""}]
[null,null,null,null,{"$f":"_xlfn.IFNA(VLOOKUP(D20,Products!A:F,6,FALSE),\"\")","v":""},{"$f":"_xlfn.IFNA(VLOOKUP(D20,Products!A:G,7,FALSE),\"\")","v":""},null,{"$f":"_xlfn.IFNA(VLOOKUP(D20,Products!A:E,2,FALSE),\"\")","v":""},{"$f":"_xlfn.IFNA(VLOOKUP(D20,Products!A:E,3,FALSE),\"\")","v":""},{"$f":"_xlfn.IFNA(VLOOKUP(D20,Products!A:E,5,FALSE) / I20 *G20,\"\")","v":""}]
[null,null,null,null,{"$f":"_xlfn.IFNA(VLOOKUP(D21,Products!A:F,6,FALSE),\"\")","v":""},{"$f":"_xlfn.IFNA(VLOOKUP(D21,Products!A:G,7,FALSE),\"\")","v":""},null,{"$f":"_xlfn.IFNA(VLOOKUP(D21,Products!A:E,2,FALSE),\"\")","v":""},{"$f":"_xlfn.IFNA(VLOOKUP(D21,Products!A:E,3,FALSE),\"\")","v":""},{"$f":"_xlfn.IFNA(VLOOKUP(D21,Products!A:E,5,FALSE) / I21 *G21,\"\")","v":""}]
[null,null,null,null,{"$f":"_xlfn.IFNA(VLOOKUP(D22,Products!A:F,6,FALSE),\"\")","v":""},{"$f":"_xlfn.IFNA(VLOOKUP(D22,Products!A:G,7,FALSE),\"\")","v":""},null,{"$f":"_xlfn.IFNA(VLOOKUP(D22,Products!A:E,2,FALSE),\"\")","v":""},{"$f":"_xlfn.IFNA(VLOOKUP(D22,Products!A:E,3,FALSE),\"\")","v":""},{"$f":"_xlfn.IFNA(VLOOKUP(D22,Products!A:E,5,FALSE) / I22 *G22,\"\")","v":""}]
[null,null,null,null,{"$f":"_xlfn.IFNA(VLOOKUP(D23,Products!A:F,6,FALSE),\"\")","v":""},{"$f":"_xlfn.IFNA(VLOOKUP(D23,Products!A:G,7,FALSE),\"\")","v":""},null,{"$f":"_xlfn.IFNA(VLOOKUP(D23,Products!A:E,2,FALSE),\"\")","v":""},{"$f":"_xlfn.IFNA(VLOOKUP(D23,Products!A:E,3,FALSE),\"\")","v":""},{"$f":"_xlfn.IFNA(VLOOKUP(D23,Products!A:E,5,FALSE) / I23 *G23,\"\")","v":""}]
[null,null,null,null,{"$f":"_xlfn.IFNA(VLOOKUP(D24,Products!A:F,6,FALSE),\"\")","v":""},{"$f":"_xlfn.IFNA(VLOOKUP(D24,Products!A:G,7,FALSE),\"\")","v":""},null,{"$f":"_xlfn.IFNA(VLOOKUP(D24,Products!A:E,2,FALSE),\"\")","v":""},{"$f":"_xlfn.IFNA(VLOOKUP(D24,Products!A:E,3,FALSE),\"\")","v":""},{"$f":"_xlfn.IFNA(VLOOKUP(D24,Products!A:E,5,FALSE) / I24 *G24,\"\")","v":""}]
[null,null,null,"TOTAAL",null,null,null,null,null,{"$f":"_xlfn.IFNA(SUM(J15:J24),\"\")","v":35.775000000000006}]
[]
[null,null,null,"Niet terugbetaalde producten",null,null,null,null,"Resterende waarde",{"$f":"_xlfn.IFNA(SUM(G11-J25-G12),\"\")","v":774.69500000000005}]
[]
[]
[]
[]
[]
[null,null,null,"Niet terugbetaalde producten"]
[]
[null,null,null,"Artikelnummer","Besteleenheidl/doos",null,"Eenheid","Omschrijving",null,"Publiekprijs incl.BTW"]
[null,null,null,"29220J",1,null,"PC","IryCone+",null,64.596400000000003]
[null,null,null,"60600J",1,null,"PC","Iryflex® reservoir",null,32.223999999999997]
[null,null,null,"1005-1",1,null,"PC","B. Braun adhesive remover",null,14.670400000000001]
[null,null,null,"F05062J",1,null,"PC","Iryflex® cone",null,25.906400000000001]
[null,null,null,"5000",1,null,"PC","Iryflex® anale spoelset",null,83.33720000000001]
[null,null,null,"F00750A",100,null,"PC","Wegwerpzakjes blauw",null,14.8]
[null,null,null,"005012A",45,null,"PC","B. Braun Ileo gel+",null,27.1]
[null,null,null,"F05064J",1,null,"PC","Iryflex® support",null,5.7134]
[]
[null,null,null,"Wil je meer informatie over stomagebruik? "]
[null,null,null,"https://www.bbraun.be/nl/patient/stomawiki.html"]
[null,"B. Braun Medical N.V. | Lambroekstraat 5b | 1831 Diegem | +32 (0)2 712 86  | www.bbraun.be | customercare.be@bbraun.com"]
[null,"De informatie in deze communicatie is strikt vertrouwelijk, kan bedrijfsinformatie omvatten en is alleen bedoeld voor gebruik door de geadresseerde. Het is eigendom van de afzender van deze informatie. Ongeoorloofd gebruik, openbaarmaking of kopiëren van deze communicatie of een deel daarvan is ten strengste verboden en kan onwettig zijn."]

{"sheet":"Calculateur FR","index":1,"n_rows":47,"n_cols":10,"rows_kept":47,"cut":false,"hidden":false,"merged":[[34,4,34,5],[46,1,46,9],[45,1,45,7],[35,7,35,8],[36,7,36,8],[37,7,37,8],[38,7,38,8],[39,7,39,8],[40,7,40,8],[43,3,43,5],[41,7,41,8],[35,4,35,5],[36,4,36,5],[37,4,37,5],[38,4,38,5],[4,6,4,7],[9,4,9,7],[39,4,39,5],[40,4,40,5],[41,4,41,5],[6,3,6,5],[7,3,7,5],[24,3,24,8],[33,7,33,8],[34,7,34,8],[31,3,31,4],[6,8,6,9],[7,8,7,9],[6,6,6,7],[7,6,7,7],[33,4,33,5]]}
[]
[]
[]
[null,null,"  "]
[null,null,null,"Nom de l'utilisateur"]
[]
[null,null,null,"TYPE",null,null,"PÉRIODE",null,"TYPE DE STOMIE"]
[{"$f":"_xlfn.CONCAT(D8,G8,I8,)","v":"Dispositifs de stomiePhase d'apprentissageColostomie"},null,null,"Dispositifs de stomie",null,null,"Phase d'apprentissage",null,"Colostomie"]
[]
[null,null,null,"Choix:",{"$f":"_xlfn.IFNA(IF(VLOOKUP(A8,'Portefeuille FR'!A:H,8,FALSE)=0,\"\",(VLOOKUP(A8,'Portefeuille FR'!A:H,8,FALSE))),\"choix invalide \")","v":"655336 - Colostomie - Phase d'apprentissage - Dispositifs de stomie"}]
[null,null,null,"Valeur du portefeuille",null,null,{"$f":"_xlfn.IFNA(VLOOKUP(A8,'Portefeuille FR'!A:H,7,FALSE),\"0\")","v":769.9}]
[null,null,null,"Montant déjà dépensé",null,null,0]
[]
[null,null,null,"Numéro d'article ","Numéro de liste","Numéro d'identification","Quantité de boîtes ","Description ","Quantité/boîte ","Prix ​​public TVA incl."]
[null,null,null,"621240J",{"$f":"_xlfn.IFNA(VLOOKUP(D15,Products!A:F,6,FALSE),\"\")","v":"906010"},{"$f":"_xlfn.IFNA(VLOOKUP(D15,Products!A:G,7,FALSE),\"\")","v":"906010000043"},"30",{"$f":"_xlfn.IFNA(VLOOKUP(D15,Products!A:E,2,FALSE),\"\")","v":"FLEXIMA KEY ROLL'UP DRAIN. POUCH TRSP 40"},{"$f":"_xlfn.IFNA(VLOOKUP(D15,Products!A:E,3,FALSE),\"\")","v":30},{"$f":"_xlfn.IFNA(VLOOKUP(D15,Products!A:E,5,FALSE) / I15 *G15,\"\")","v":57.377800000000008}]
[null,null,null,null,{"$f":"_xlfn.IFNA(VLOOKUP(D16,Products!A:F,6,FALSE),\"\")","v":""},{"$f":"_xlfn.IFNA(VLOOKUP(D16,Products!A:G,7,FALSE),\"\")","v":""},null,{"$f":"_xlfn.IFNA(VLOOKUP(D16,Products!A:E,2,FALSE),\"\")","v":""},{"$f":"_xlfn.IFNA(VLOOKUP(D16,Products!A:E,3,FALSE),\"\")","v":""},{"$f":"_xlfn.IFNA(VLOOKUP(D16,Products!A:E,5,FALSE) / I16 *G16,\"\")","v":""}]
[null,null,null,null,{"$f":"_xlfn.IFNA(VLOOKUP(D17,Products!A:F,6,FALSE),\"\")","v":""},{"$f":"_xlfn.IFNA(VLOOKUP(D17,Products!A:G,7,FALSE),\"\")","v":""},null,{"$f":"_xlfn.IFNA(VLOOKUP(D17,Products!A:E,2,FALSE),\"\")","v":""},{"$f":"_xlfn.IFNA(VLOOKUP(D17,Products!A:E,3,FALSE),\"\")","v":""},{"$f":"_xlfn.IFNA(VLOOKUP(D17,Products!A:E,5,FALSE) / I17 *G17,\"\")","v":""}]
[null,null,null,null,{"$f":"_xlfn.IFNA(VLOOKUP(D18,Products!A:F,6,FALSE),\"\")","v":""},{"$f":"_xlfn.IFNA(VLOOKUP(D18,Products!A:G,7,FALSE),\"\")","v":""},null,{"$f":"_xlfn.IFNA(VLOOKUP(D18,Products!A:E,2,FALSE),\"\")","v":""},{"$f":"_xlfn.IFNA(VLOOKUP(D18,Products!A:E,3,FALSE),\"\")","v":""},{"$f":"_xlfn.IFNA(VLOOKUP(D18,Products!A:E,5,FALSE) / I18 *G18,\"\")","v":""}]
[null,null,null,null,{"$f":"_xlfn.IFNA(VLOOKUP(D19,Products!A:F,6,FALSE),\"\")","v":""},{"$f":"_xlfn.IFNA(VLOOKUP(D19,Products!A:G,7,FALSE),\"\")","v":""},null,{"$f":"_xlfn.IFNA(VLOOKUP(D19,Products!A:E,2,FALSE),\"\")","v":""},{"$f":"_xlfn.IFNA(VLOOKUP(D19,Products!A:E,3,FALSE),\"\")","v":""},{"$f":"_xlfn.IFNA(VLOOKUP(D19,Products!A:E,5,FALSE) / I19 *G19,\"\")","v":""}]
[null,null,null,null,{"$f":"_xlfn.IFNA(VLOOKUP(D20,Products!A:F,6,FALSE),\"\")","v":""},{"$f":"_xlfn.IFNA(VLOOKUP(D20,Products!A:G,7,FALSE),\"\")","v":""},null,{"$f":"_xlfn.IFNA(VLOOKUP(D20,Products!A:E,2,FALSE),\"\")","v":""},{"$f":"_xlfn.IFNA(VLOOKUP(D20,Products!A:E,3,FALSE),\"\")","v":""},{"$f":"_xlfn.IFNA(VLOOKUP(D20,Products!A:E,5,FALSE) / I20 *G20,\"\")","v":""}]
[null,null,null,null,{"$f":"_xlfn.IFNA(VLOOKUP(D21,Products!A:F,6,FALSE),\"\")","v":""},{"$f":"_xlfn.IFNA(VLOOKUP(D21,Products!A:G,7,FALSE),\"\")","v":""},null,{"$f":"_xlfn.IFNA(VLOOKUP(D21,Products!A:E,2,FALSE),\"\")","v":""},{"$f":"_xlfn.IFNA(VLOOKUP(D21,Products!A:E,3,FALSE),\"\")","v":""},{"$f":"_xlfn.IFNA(VLOOKUP(D21,Products!A:E,5,FALSE) / I21 *G21,\"\")","v":""}]
[null,null,null,null,{"$f":"_xlfn.IFNA(VLOOKUP(D22,Products!A:F,6,FALSE),\"\")","v":""},{"$f":"_xlfn.IFNA(VLOOKUP(D22,Products!A:G,7,FALSE),\"\")","v":""},null,{"$f":"_xlfn.IFNA(VLOOKUP(D22,Products!A:E,2,FALSE),\"\")","v":""},{"$f":"_xlfn.IFNA(VLOOKUP(D22,Products!A:E,3,FALSE),\"\")","v":""},{"$f":"_xlfn.IFNA(VLOOKUP(D22,Products!A:E,5,FALSE) / I22 *G22,\"\")","v":""}]
[null,null,null,null,{"$f":"_xlfn.IFNA(VLOOKUP(D23,Products!A:F,6,FALSE),\"\")","v":""},{"$f":"_xlfn.IFNA(VLOOKUP(D23,Products!A:G,7,FALSE),\"\")","v":""},null,{"$f":"_xlfn.IFNA(VLOOKUP(D23,Products!A:E,2,FALSE),\"\")","v":""},{"$f":"_xlfn.IFNA(VLOOKUP(D23,Products!A:E,3,FALSE),\"\")","v":""},{"$f":"_xlfn.IFNA(VLOOKUP(D23,Products!A:E,5,FALSE) / I23 *G23,\"\")","v":""}]
[null,null,null,null,{"$f":"_xlfn.IFNA(VLOOKUP(D24,Products!A:F,6,FALSE),\"\")","v":""},{"$f":"_xlfn.IFNA(VLOOKUP(D24,Products!A:G,7,FALSE),\"\")","v":""},null,{"$f":"_xlfn.IFNA(VLOOKUP(D24,Products!A:E,2,FALSE),\"\")","v":""},{"$f":"_xlfn.IFNA(VLOOKUP(D24,Products!A:E,3,FALSE),\"\")","v":""},{"$f":"_xlfn.IFNA(VLOOKUP(D24,Products!A:E,5,FALSE) / I24 *G24,\"\")","v":""}]
[null,null,null," TOTAL",null,null,null,null,null,{"$f":"_xlfn.IFNA(SUM(J15:J24),\"\")","v":57.377800000000008}]
[]
[null,null,null,null,null,null,null,null,"Valeur résiduelle ",{"$f":"_xlfn.IFNA(SUM(G11-J25-G12),\"\")","v":712.5222}]
[]
[]
[]
[]
[null,null,null,"Produits non remboursés"]
[]
[null,null,null,"Numéro d'article ","Unité de commande/boîte ",null,"Unité  ","Description ",null,"Prix ​​public TVA incl."]
[null,null,null,"29220J",1,null,"PC","IryCone+",null,64.596400000000003]
[null,null,null,"60600J",1,null,"PC","Iryflex® réservoir",null,32.223999999999997]
[null,null,null,"1005-1",1,null,"PC","B. Braun adhesive remover",null,14.670400000000001]
[null,null,null,"F05062J",1,null,"PC","Iryflex® cone",null,25.906400000000001]
[null,null,null,"5000",1,null,"PC","Iryflex® set de rinçage",null,83.33720000000001]
[null,null,null,"F00750A",100,null,"PC","Sacs jetables bleus",null,0.147976]
[null,null,null,"005012A",45,null,"PC","B. Braun Iléo gel+",null,0.60231555555555549]
[null,null,null,"F05064J",1,null,"PC","Iryflex® support",null,5.7134]
[]
[null,null,null,"Souhaitez-vous en savoir plus sur les soins de stomie?             "]
[null,null,null,"https://www.bbraun.be/fr/Patients-et-utilisateurs/stomawiki.html"]
[null,"B. Braun Medical S.A. | Lamboekstraat 5b | 1831 Diegem | +32 (0)2 712 86  | www.bbraun.be | customercare.be@bbraun.com"]
[null,"Les informations contenues dans cette communication sont strictement confidentielles, peuvent constituer des informations commerciales et sont destinées uniquement à l'usage du destinataire. Ces informations sont la propriété de l'expéditeur de celles-ci. L'utilisation, la divulgation ou la copie non autorisée de cette communication, en tout ou en partie, est strictement interdite et peut être illégale."]

{"sheet":"Products","index":2,"n_rows":174,"n_cols":7,"rows_kept":174,"cut":false,"hidden":false,"merged":[[1,0,1,6],[162,0,162,4]]}
["Artikelnummer Numéro d'article","Artikelomschrijving                          \nDescription","Besteleenheid/doos                         Unité de commande/boîte","Eenheid        Unité","Publieksprijs/doos incl.BTW  \nPrix ​​public/boîte TVA incl.","Lijstnummer  Numéro de liste","ID-nummer           Numéro d'indentification"]
["TERUGBETAALDE PRODUCTEN/PRODUITS REMBOURSÉS"]
["044015J","FLEXIMA COLO BEIGE 15-60 SCG",30,"PC",97.626000000000005,"906001","906001000055"]
["044025J","FLEXIMA COLO BEIGE 25MM SCG",30,"PC",97.626000000000005,"906001","906001000055"]
["044030J","FLEXIMA COLO BEIGE 30MM SCG",30,"PC",97.626000000000005,"906001","906001000055"]
["044035J","FLEXIMA COLO BEIGE 35MM SCG",30,"PC",97.626000000000005,"906001","906001000055"]
["044040J","FLEXIMA COLO BEIGE 40MM SCG",30,"PC",97.626000000000005,"906001","906001000055"]
["044070J","FLEXIMA COLO BEIGE 15-75 SCG",30,"PC",97.626000000000005,"906001","906001000055"]
["044615J","FLEXIMA COLO TRANSP. 15-60 SCG",30,"PC",97.626000000000005,"906001","906001000055"]
["044670J","FLEXIMA COLO TRANSP. 15-75 SCG",30,"PC",97.626000000000005,"906001","906001000055"]
["4612115J","FLEXIMA ACTIVE CLOSED FLAT SC MIDI 15-50",30,"PC",97.626000000000005,"906001","906001000046"]
["4622115J","FLEXIMA ACTIVE ROLL UP MIDI SC CTF 15-50",30,"PC",133.24200000000002,"906002","906002000066"]
["4622215J","FLEXIMA ACTIVE ROLL UP MINI SC CTF 15-45",30,"PC",133.24200000000002,"906002","906002000075"]
["4622380J","FLEXIMA ACTIVE ROLL UP MAXI SC CTF 15-65",30,"PC",133.24200000000002,"906002","906002000057"]
["60530J","IRYSLEEVES 50 MM",30,"PC",56.603999999999999,"906021","906021000026"]
["621250J","FLEXIMA KEY ROLL'UP DRAIN. POUCH TRSP 50",30,"PC",57.24,"906010","906010000043"]
["621251J","FLEXIMA KEY ROLL'UP DRAIN. POUCH BEIGE 5",30,"PC",57.24,"906010","906010000043"]
["621260J","FLEXIMA KEY ROLL'UP DRAIN. POUCH TRSP 60",30,"PC",57.24,"906010","906010000043"]
["621261J","FLEXIMA KEY ROLL'UP DRAIN. POUCH BEIGE 6",30,"PC",57.24,"906010","906010000043"]
["621280J","FLEXIMA KEY ROLL'UP DRAIN. POUCH TRSP 80",30,"PC",57.24,"906010","906010000043"]
["621281J","FLEXIMA KEY ROLL'UP DRAIN. POUCH BEIGE 8",30,"PC",57.24,"906010","906010000043"]
["62140J","FLEXIMA KEY COLO BGE 40",30,"PC",58.512000000000008,"906009","906009000023"]
["62150J","FLEXIMA KEY COLO BGE 50",30,"PC",58.512000000000008,"906009","906009000023"]
["62160J","FLEXIMA KEY COLO BGE 60",30,"PC",58.512000000000008,"906009","906009000023"]
["62250J","FLEXIMA KEY COLO TRPS 50",30,"PC",58.512000000000008,"906009","906009000023"]
["62260J","FLEXIMA KEY COLO TRPS 60",30,"PC",58.512000000000008,"906009","906009000023"]
["62280J","FLEXIMA KEY COLO TRPS 80",30,"PC",58.512000000000008,"906009","906009000023"]
["931045J","FLEXIMA 3S COLO MIDI BEIGE 45MM",30,"PC",58.512000000000008,"906009","906009000014"]
["931055J","FLEXIMA 3S COLO MIDI BEIGE 55MM",30,"PC",58.512000000000008,"906009","906009000014"]
["931065J","FLEXIMA 3S COLO MIDI BEIGE 65MM",30,"PC",58.512000000000008,"906009","906009000014"]
["931445J","FLEXIMA 3S COLO MAXI BEIGE 45MM",30,"PC",58.512000000000008,"906009","906009000014"]
["931455J","FLEXIMA 3S COLO MAXI BEIGE 55MM",30,"PC",58.512000000000008,"906009","906009000014"]
["931465J","FLEXIMA 3S COLO MAXI BEIGE65MM",30,"PC",58.512000000000008,"906009","906009000014"]
["931480J","FLEXIMA 3S COLO MAXI BEIGE 80MM",30,"PC",58.512000000000008,"906009","906009000014"]
["931545J","FLEXIMA 3S COLO MAXI TRP 45MM",30,"PC",58.512000000000008,"906009","906009000014"]
["931555J","FLEXIMA 3S COLO MAXI TRP 55MM",30,"PC",58.512000000000008,"906009","906009000014"]
["931565J","FLEXIMA 3S COLO MAXI TRP 65MM",30,"PC",58.512000000000008,"906009","906009000014"]
["931580J","FLEXIMA 3S COLO MAXI TRP 80MM",30,"PC",58.512000000000008,"906009","906009000014"]
["932045J","FLEXIMA 3S ILEO MIDI BEIGE 45MM",30,"PC",57.24,"906010","906010000025"]
["932055J","FLEXIMA 3S ILEO MIDI BEIGE 55MM",30,"PC",57.24,"906010","906010000025"]
["932065J","FLEXIMA 3S ILEO MIDI BEIGE 65MM",30,"PC",57.24,"906010","906010000025"]
["932145J","FLEXIMA 3S ILEO MIDI TRP 45MM",30,"PC",57.24,"906010","906010000025"]
["932155J","FLEXIMA 3S ILEO MIDI TRP 55MM",30,"PC",57.24,"906010","906010000025"]
["932165J","FLEXIMA 3S ILEO MIDI TRP 65MM",30,"PC",57.24,"906010","906010000025"]
["932445J","FLEXIMA 3S ILEO MAXI BEIGE 45MM",30,"PC",57.24,"906010","906010000025"]
["932455J","FLEXIMA 3S ILEO MAXI BEIGE 55MM",30,"PC",57.24,"906010","906010000025"]
["932465J","FLEXIMA 3S ILEO MAXI BEIGE 65MM",30,"PC",57.24,"906010","906010000025"]
["932480J","FLEXIMA 3S ILEO MAXI BEIGE 80MM",30,"PC",57.24,"906010","906010000025"]
["932545J","FLEXIMA 3S ILEO MAXI TRP 45MM",30,"PC",57.24,"906010","906010000025"]
["932555J","FLEXIMA 3S ILEO MAXI TRP 55MM",30,"PC",57.24,"906010","906010000025"]
["932565J","FLEXIMA 3S ILEO MAXI TRP 65MM",30,"PC",57.24,"906010","906010000025"]
["932580J","FLEXIMA 3S ILEO MAXI TRP 80MM",30,"PC",57.24,"906010","906010000025"]
["933055J","FLEXIMA 3S HF BEIGE 55MM",30,"PC",126.56400000000001,"906010","906010000016"]
["933065J","FLEXIMA 3S HF BEIGE 65MM",30,"PC",126.56400000000001,"906010","906010000016"]
["933080J","FLEXIMA 3S HF BEIGE 80MM",30,"PC",126.56400000000001,"906010","906010000016"]
["933155J","FLEXIMA 3S HF TRP 55MM",30,"PC",126.56400000000001,"906010","906010000016"]
["933165J","FLEXIMA 3S HF TRP 65MM",30,"PC",126.56400000000001,"906010","906010000016"]
["933180J","FLEXIMA 3S HIGH FLOW TRP 80MM",30,"PC",126.56400000000001,"906010","906010000016"]
["934045J","FLEXIMA 3S URO  BEIGE 45MM",30,"PC",117.97800000000001,"906011","906011000011"]
["934055J","FLEXIMA 3S URO BEIGE 55MM",30,"PC",117.97800000000001,"906011","906011000011"]
["934065J","FLEXIMA 3S URO BEIGE 65MM",30,"PC",117.97800000000001,"906011","906011000011"]
["934145J","FLEXIMA 3S URO TRP 45MM",30,"PC",117.97800000000001,"906011","906011000011"]
["934155J","FLEXIMA 3S URO TRP 55MM",30,"PC",117.97800000000001,"906011","906011000011"]
["934165J","FLEXIMA 3S URO TRP 65MM",30,"PC",117.97800000000001,"906011","906011000011"]
["9350355J","BE 1 CLOSED POUCH 55MM",30,"PC",102.39600000000002,"906018","906018000011"]
["9350365J","BE 1 CLOSED POUCH 65MM",30,"PC",102.39600000000002,"906018","906018000011"]
["42717J","FLEXIMA ILEO ROLL'UP CVX BEIGE 15-35MM",10,"PC",48.866000000000007,"906005","906005000013"]
["42718J","FLEXIMA ILEO ROLL'UP CVX BEIGE 15-45MM",10,"PC",48.866000000000007,"906005","906005000013"]
["42817J","FLEXIMA ILEO ROLL'UP CVX TRANS 15-35MM",10,"PC",48.866000000000007,"906005","906005000013"]
["42818J","FLEXIMA ILEO ROLL'UP CVX TRANS 15-45MM",10,"PC",48.866000000000007,"906005","906005000013"]
["44117J","FLEXIMA COLO CONVEX TRANSP 15-35MM",10,"PC",35.827999999999996,"906004","906004000011"]
["44118J","FLEXIMA COLO CONVEX TRANSP 15-45MM",10,"PC",35.827999999999996,"906004","906004000011"]
["44915J","FLEXIMA URO SILK CONVEX TRANSP 15-25",10,"PC",73.352000000000004,"906006","906006000015"]
["44917J","FLEXIMA URO SILK CONVEX TRANSP 15-35",10,"PC",73.352000000000004,"906006","906006000015"]
["44919J","FLEXIMA URO SILK CONVEX BEIGE 15-35",10,"PC",73.352000000000004,"906006","906006000015"]
["039901A","FLOW COLLECTOR",2,"PC",8.4375999999999998,906010,"906010000052"]
["62040J","FLEXIMA KEY BASE PLATE 40/15-35",5,"PC",37.577000000000005,"906007","906007000062"]
["62050J","FLEXIMA KEY BASE PLATE 50/15-45",5,"PC",37.577000000000005,"906007","906007000053"]
["62052J","FLEXIMA KEY CONVEX B PLATE 50/15-25",5,"PC",50.402999999999999,"906008","906008000021"]
["62060J","FLEXIMA KEY BASE PLATE 60/15-55",5,"PC",37.577000000000005,"906007","906007000053"]
["62062J","FLEXIMA KEY CONVEX B PLATE 60/15-35",5,"PC",50.402999999999999,"906008","906008000021"]
["62063J","FLEXIMA KEY CONVEX B PLATE 60/15-45",5,"PC",50.402999999999999,"906008","906008000021"]
["62064J","FLEXIMA KEY CONVEX B PLATE 60/25",5,"PC",50.402999999999999,"906008","906008000021"]
["62069J","FLEXIMA KEY CONVEX B PLATE 60/40",5,"PC",50.402999999999999,"906008","906008000021"]
["62080J","FLEXIMA KEY BASE PLATE 80/15-75",5,"PC",37.577000000000005,"906007","906007000062"]
["936415J","FLEXIMA 3S BP  FLAT 45/15-30MM",5,"PC",37.577000000000005,"906007","906007000035"]
["936420J","FLEXIMA 3S BP FLAT 45/ 20MM",5,"PC",37.577000000000005,"906007","906007000035"]
["936425J","FLEXIMA 3S BP FLAT 45/ 25MM",5,"PC",37.577000000000005,"906007","906007000035"]
["936430J","FLEXIMA 3S BP FLAT 45/ 30MM",5,"PC",37.577000000000005,"906007","906007000035"]
["936515J","FLEXIMA 3S BP  FLAT 55/15-40MM",5,"PC",37.577000000000005,"906007","906007000035"]
["936517J","BE 1 BASE PLATE DIAM 55 - SMALL BOX",5,"PC",37.577000000000005,"906007","906007000017"]
["936535J","FLEXIMA 3S BP FLAT 55/ 35MM",5,"PC",37.577000000000005,"906007","906007000035"]
["936540J","FLEXIMA 3S BP FLAT 55/ 40MM",5,"PC",37.577000000000005,"906007","906007000035"]
["936615J","FLEXIMA 3S BP FLAT 65/ 15-50MM",5,"PC",37.577000000000005,"906007","906007000035"]
["936617J","BE 1 BASE PLATE DIAM 65 - SMALL BOX",5,"PC",37.577000000000005,"906007","906007000017"]
["936645J","FLEXIMA 3S BP FLAT 65/ 45MM",5,"PC",37.577000000000005,"906007","906007000035"]
["936815J","FLEXIMA 3S BP FLAT 80/ 15-65MM",5,"PC",37.577000000000005,"906007","906007000026"]
["937415J","FLEXIMA 3S BP CVX 45/ 15-26MM",5,"PC",50.402999999999999,"906008","906008000012"]
["937425J","FLEXIMA 3S BP CVX 45/ 25MM",5,"PC",50.402999999999999,"906008","906008000012"]
["937515J","FLEXIMA 3S BP CVX 55/ 15-36MM",5,"PC",50.402999999999999,"906008","906008000012"]
["937530J","FLEXIMA 3S BP CVX 55/ 30MM",5,"PC",50.402999999999999,"906008","906008000012"]
["937615J","FLEXIMA 3S BP CVX 65/ 15-46MM",5,"PC",50.402999999999999,"906008","906008000012"]
["42715J","FLEXIMA ROLL'UP BEIGE CTF",30,"PC",133.21020000000001,"906002","906002000111"]
["42815J","FLEXIMA ROLL'UP TRANSP CTF",30,"PC",133.21020000000001,"906002","906002000111"]
["42970J","FLEXIMA DRAIN HIGH FLOW 15-76 BEIGE",30,"PC",163.9502,"906002","906002000093"]
["42971J","FLEXIMA DRAIN HIGH FLOW 15-76 TRSP",30,"PC",163.9502,"906002","906002000093"]
["44212J","FLEXIMA CLOSED MINI CTF  15-45",30,"PC",97.5518,"906001","906001000064"]
["44220J","FLEXIMA CLOSED MINI 20",30,"PC",97.5518,"906001","906001000064"]
["44225J","FLEXIMA CLOSED MINI 25",30,"PC",97.5518,"906001","906001000064"]
["44230J","FLEXIMA CLOSED MINI 30",30,"PC",97.5518,"906001","906001000064"]
["44235J","FLEXIMA CLOSED MINI 35",30,"PC",97.5518,"906001","906001000064"]
["4610115J","FLEXIMA ACTIVE CLOSED BEIGE CTF 15-50",30,"PC",97.5518,"906001","906001000021"]
["4610125J","FLEXIMA ACTIVE CLOSED BEIGE 25 MM",30,"PC",97.5518,"906001","906001000021"]
["4610130J","FLEXIMA ACTIVE CLOSED BEIGE 30 MM",30,"PC",97.5518,"906001","906001000021"]
["4610135J","FLEXIMA ACTIVE FERMEE BEIGE 35 MM",30,"PC",97.5518,"906001","906001000021"]
["4610140J","FLEXIMA ACTIVE FERMEE BEIGE 40 MM",30,"PC",97.5518,"906001","906001000021"]
["4610215J","FLEXIMA ACTIVE CLOSED MINI BEIGE 15-45",30,"PC",97.5518,"906001","906001000037"]
["4610380J","FLEXIMA ACTIVE CLOSED MAXI BEIGE 15-80",30,"PC",97.5518,"906001","906001000012"]
["4611115J","FLEXIMA ACTIVE CLOSED TRSP CTF 15-50",30,"PC",97.5518,"906001","906001000021"]
["4611380J","FLEXIMA ACTIVE CLOSED MAXI TRSP 15-65",30,"PC",97.5518,"906001","906001000012"]
["4620115J","FLEXIMA ACTIVE ROLL'UP BEIGE CTF 15-60",30,"PC",133.21020000000001,"906002","906002000032"]
["4620125J","FLEXIMA ACTIVE ROLL'UP BEIGE 25 MM",30,"PC",133.21020000000001,"906002","906002000032"]
["4620130J","FLEXIMA ACTIVE ROLL'UP BEIGE 30 MM",30,"PC",133.21020000000001,"906002","906002000032"]
["4620135J","FLEXIMA ACTIVE ROLL'UP BEIGE 35 MM",30,"PC",133.21020000000001,"906002","906002000032"]
["4620140J","FLEXIMA ACTIVE ROLL'UP BEIGE 40 MM",30,"PC",133.21020000000001,"906002","906002000032"]
["4620215J","FLEXIMA ACTIVE ROLL'UP MINI BEIGE 15-45",30,"PC",133.21020000000001,"906002","906002000041"]
["4620380J","FLEXIMA ACTIVE ROLL'UP MAXI BEIGE 15-65",30,"PC",133.21020000000001,"906002","906002000023"]
["4621115J","FLEXIMA ACTIVE ROLL'UP TRSP CTF 15-50",30,"PC",133.21020000000001,"906002","906002000032"]
["4621215J","FLEXIMA ACTIVE ROLL'UP MINI TRSP 15-45",30,"PC",133.21020000000001,"906002","906002000041"]
["4621380J","FLEXIMA ACTIVE ROLL'UP MAXI TRSP 15-65",30,"PC",133.21020000000001,"906002","906002000023"]
["60630J","IRYSLEEVE IRRIGATION SLEEVE 60 MM/30",30,"PC",56.561600000000006,"906021","906021000017"]
["621240J","FLEXIMA KEY ROLL'UP DRAIN. POUCH TRSP 40",30,"PC",57.377800000000008,"906010","906010000043"]
["621241J","FLEXIMA KEY ROLL'UP DRAIN. POUCH BEIGE 4",30,"PC",57.377800000000008,"906010","906010000043"]
["62180J","FLEXIMA KEY COLO BGE 80",30,"PC",58.607400000000005,"906009","906009000023"]
["62240J","FLEXIMA KEY COLO TRPS 40",30,"PC",58.607400000000005,"906009","906009000023"]
["62550J","FLEXIMA KEY MAXI DRAIN POUCH BGE 50",30,"PC",126.64880000000001,"906009","906009000023"]
["62560J","FLEXIMA KEY MAXI DRAIN POUCH BGE 60",30,"PC",126.64880000000001,"906009","906009000023"]
["62680J","FLEXIMA KEY MAXI DRAIN POUCH TRSP 80",30,"PC",126.64880000000001,"906010","906010000034"]
["044913J","FLEXIMA URO SILK TRANSP CUTTOFIT",20,"PC",133.34800000000001,"906003","906003000016"]
["044914J","FLEXIMA URO SILK BEIGE CUTTOFIT",20,"PC",133.34800000000001,"906003","906003000016"]
["62740J","FLEXIMA KEY URO BEIGE 40",20,"PC",78.694400000000002,"906011","906011000027"]
["62750J","FLEXIMA KEY URO BEIGE 50",20,"PC",78.694400000000002,"906011","906011000027"]
["62760J","FLEXIMA KEY URO BEIGE 60",20,"PC",78.694400000000002,"906011","906011000027"]
["62840J","FLEXIMA KEY URO TRANSP 40",20,"PC",78.694400000000002,"906011","906011000027"]
["62850J","FLEXIMA KEY URO TRANSP 50",20,"PC",78.694400000000002,"906011","906011000027"]
["62860J","FLEXIMA KEY URO TRANSP 60",20,"PC",78.694400000000002,"906011","906011000027"]
["039900A","FLOW COLLECTOR",15,"PC",63.335000000000001,"906010","906010000052"]
["F00014A","IRYFIX STOMA PLUG MET FILTER",15,"PC",59.031399999999998,"906019","906019000013"]
["44017J","FLEXIMA COLO CONVEXE BEIGE 15-35 MM",10,"PC",35.796200000000006,"906004","906004000011"]
["44018J","FLEXIMA COLO CONVEX BEIGE 15-45 MM",10,"PC",35.796200000000006,"906004","906004000011"]
["62066J","FLEXIMA KEY CONVEX B PLATE 60/30",5,"PC",50.413600000000002,"906008","906008000021"]
["62067J","FLEXIMA KEY CONVEX B PLATE 60/35",5,"PC",50.413600000000002,"906008","906008000021"]
["4002801","ASKINA® BARRIER FILM  SPRAY BOTTLE",1,"PC",17.415800000000001,"906027","906027000112"]
["42710J","FLEXIMA 1P ROLL UP MINI SC CTF 15-45",30,"PC",133.24200000000002,"906002","906002000102"]
["42716J","FLEXIMA 1P ROLL UP MIDI SC CTF 15-60",30,"PC",133.24200000000002,"906002","906002000102"]
["42776J","FLEXIMA 1P ROLL UP MAXI SC CTF 15-76",30,"PC",133.24200000000002,"906002","906002000102"]
["5028J","B.BRAUN STOMA CARE BELT",1,"PC",9.2856000000000005,"906024","906024000016"]
["60653J","IRYFLEX GRAVITY SET",1,"PC",133.89920000000001,"906020","906020000015"]
["F05008","PATE TUBE 60 GR",60,"GRAM",17.214399999999998,"906025","906025000011"]
[]
["29120J","IRYPUMP S SET (TIJDELIJK NIET BESCHIKBAAR/  TEMPORAIREMENT INDISPONIBLE)",1,"PC",426.70300000000003]
[]
["NIET TERUGBETAALDE PRODUCTEN/ PRODUITS NON-REMBOURSÉS"]
["29020","IRYPUMP POMPMODULE",1,"PC",325.64260000000002]
["29220J","IRYCONE+",1,"PC",64.596400000000003]
[29240,"IRYPUMP watercontainer",1,"PC",70.447599999999994]
["33220922","IryPump® Power supply",1,"PC",24.4436]
["60600J","IRYFLEX RESERVOIR",1,"PC",32.223999999999997]
["1005-1","B.BRAUN ADHESIVE REMOVER",1,"PC",14.670400000000001]
["F05062J","IRYFLEX CONE",1,"PC",25.906400000000001]
["5000","IRYFLEX ANALE SPOELSET",1,"PC",83.33720000000001]
["F00750A","SAC BLEU WEGWERPZAKJE",100,"PC",14.797600000000001]
["005012A","B BRAUN ILEO GEL+",45,"PC",27.104200000000002]
["F05064J","IRYFLEX SUPPORT",1,"PC",5.7134]

{"sheet":"Portefeuille NL","index":3,"n_rows":30,"n_cols":8,"rows_kept":30,"cut":false,"hidden":false,"merged":[]}
[null,"1. Maximale verzekeringstegemoetkomingen voor stomahulpmiddelen"]
[null,"Soort stoma","Prestatie","Type","Periode","Leerfase of opvolgfase","Bedrag in € voor 2021"]
[{"$f":"_xlfn.CONCAT(D3,E3,B3)","v":"StomahulpmiddelenleerfaseColostoma"},"Colostoma",655336,"Stomahulpmiddelen","leerfase","gedurende de éérste drie maanden",769.9,{"$f":"_xlfn.CONCAT(C3, \" - \",B3,\" - \",E3,\" - \",D3)","v":"655336 - Colostoma - leerfase - Stomahulpmiddelen"}]
[{"$f":"_xlfn.CONCAT(D4,E4,B4)","v":"StomahulpmiddelenopvolgfaseColostoma"},"Colostoma",655351,"Stomahulpmiddelen","opvolgfase","vanaf de 4de maand",627.13,{"$f":"_xlfn.CONCAT(C4, \" - \",B4,\" - \",E4,\" - \",D4)","v":"655351 - Colostoma - opvolgfase - Stomahulpmiddelen"}]
["StomahulpmiddelenleerfaseIleostoma","Ileostoma",655373,"Stomahulpmiddelen","leerfase","gedurende de éérste drie maanden",673.13,"655373 - Ileostoma - leerfase - Stomahulpmiddelen"]
["StomahulpmiddelenopvolgfaseIleostoma","Ileostoma",655432,"Stomahulpmiddelen","opvolgfase","vanaf de 4de maand",530.36,"655432 - Ileostoma - opvolgfase - Stomahulpmiddelen"]
["StomahulpmiddelenleerfaseUrostoma","Urostoma",655454,"Stomahulpmiddelen","leerfase","gedurende de éérste drie maanden",747.97,"655454 - Urostoma - leerfase - Stomahulpmiddelen"]
["StomahulpmiddelenopvolgfaseUrostoma","Urostoma",655476,"Stomahulpmiddelen","opvolgfase","vanaf de 4de maand",605.20000000000005,"655476 - Urostoma - opvolgfase - Stomahulpmiddelen"]
[null,"2. Maximale verzekeringstegemoetkomingen voor stomahulpmiddelen bij gebruik van convexe/concave systemen"]
[null,"Soort stoma","Prestatie","Type","Periode","Leerfase of opvolgfase","Bedrag in € voor 2021"]
[{"$f":"_xlfn.CONCAT(D11,E11,B11)","v":"Convex/ConcaafleerfaseColostoma"},"Colostoma",655491,"Convex/Concaaf","leerfase","gedurende de éérste drie maanden",953.24,"655491 - Colostoma - leerfase - Convex/Concaaf"]
["Convex/ConcaafopvolgfaseColostoma","Colostoma",655550,"Convex/Concaaf","opvolgfase","vanaf de 4de maand",810.47,"655550 - Colostoma - opvolgfase - Convex/Concaaf"]
["Convex/ConcaafleerfaseIleostoma","Ileostoma",655572,"Convex/Concaaf","leerfase","gedurende de éérste drie maanden",856.48,"655572 - Ileostoma - leerfase - Convex/Concaaf"]
["Convex/ConcaafopvolgfaseIleostoma","Ileostoma",655594,"Convex/Concaaf","opvolgfase","vanaf de 4de maand",713.7,"655594 - Ileostoma - opvolgfase - Convex/Concaaf"]
["Convex/ConcaafleerfaseUrostoma","Urostoma",655631,"Convex/Concaaf","leerfase","gedurende de éérste drie maanden",931.31,"655631 - Urostoma - leerfase - Convex/Concaaf"]
["Convex/ConcaafopvolgfaseUrostoma","Urostoma",655653,"Convex/Concaaf","opvolgfase","vanaf de 4de maand",788.54,"655653 - Urostoma - opvolgfase - Convex/Concaaf"]
[null,"3. Maximale verzekeringstegemoetkomingen voor stomahulpmiddelen in geval van uitzonderlijke toestand"]
[null,"Soort stoma","Prestatie","Type","Periode","Leerfase of opvolgfase","Bedrag in € voor 2021"]
[{"$f":"_xlfn.CONCAT(D19,E19,B19)","v":"Uitzonderlijke toestandopvolgfaseColostoma"},"Colostoma",655675,"Uitzonderlijke toestand","opvolgfase","vanaf de 4de maand",877.3,"655675 - Colostoma - opvolgfase - Uitzonderlijke toestand"]
[{"$f":"_xlfn.CONCAT(D20,E20,B20)","v":"Uitzonderlijke toestandopvolgfaseIleostoma"},"Ileostoma",655896,"Uitzonderlijke toestand","opvolgfase","vanaf de 4de maand",780.53,"655896 - Ileostoma - opvolgfase - Uitzonderlijke toestand"]
[{"$f":"_xlfn.CONCAT(D21,E21,B21)","v":"Uitzonderlijke toestandopvolgfaseUrostoma"},"Urostoma",655911,"Uitzonderlijke toestand","opvolgfase","vanaf de 4de maand",855.37,"655911 - Urostoma - opvolgfase - Uitzonderlijke toestand"]
[null,"4. Maximale verzekeringstegemoetkomingen voor stomahulpmiddelen in geval van uitzonderlijke toestand en bij gebruik van convexe/concave huidsystemen"]
[null,"Soort stoma","Prestatie","Type","Periode","Leerfase of opvolgfase","Bedrag in € voor 2021"]
[{"$f":"_xlfn.CONCAT(D24,E24,B24)","v":"Uitzonderlijke toestand & convex/concaafopvolgfaseColostoma"},"Colostoma",655933,"Uitzonderlijke toestand & convex/concaaf","opvolgfase","vanaf de 4de maand",1060.6400000000001,"655933 - Colostoma - opvolgfase - Uitzonderlijke toestand & convex/concaaf"]
[{"$f":"_xlfn.CONCAT(D25,E25,B25)","v":"Uitzonderlijke toestand & convex/concaafopvolgfaseIleostoma"},"Ileostoma",655955,"Uitzonderlijke toestand & convex/concaaf","opvolgfase","vanaf de 4de maand",963.87,"655955 - Ileostoma - opvolgfase - Uitzonderlijke toestand & convex/concaaf"]
[{"$f":"_xlfn.CONCAT(D26,E26,B26)","v":"Uitzonderlijke toestand & convex/concaafopvolgfaseUrostoma"},"Urostoma",655970,"Uitzonderlijke toestand & convex/concaaf","opvolgfase","vanaf de 4de maand",1038.71,"655970 - Urostoma - opvolgfase - Uitzonderlijke toestand & convex/concaaf"]
[null,"5. Maximale specifieke verzekeringstegemoetkomingen voor irrigatie"]
[null,"Soort stoma","Prestatie","Type","Periode","Leerfase of opvolgfase","Bedrag in € voor 2021"]
[{"$f":"_xlfn.CONCAT(D29,E29,B29)","v":"Irrigatieirrigatie 6MIrrigatie"},"Irrigatie",656073,"Irrigatie","irrigatie 6M","manuele irrigatieset, per 6 maanden",139.28,"656073 - Irrigatie - irrigatie 6M - Irrigatie"]
[{"$f":"_xlfn.CONCAT(D30,E30,B30)","v":"Irrigatieirrigatie 36MIrrigatie"},"Irrigatie",656095,"Irrigatie","irrigatie 36M","irrigatiepomp, per 36 maanden",337.1,"656095 - Irrigatie - irrigatie 36M - Irrigatie"]

{"sheet":"Portefeuille FR","index":4,"n_rows":29,"n_cols":8,"rows_kept":29,"cut":false,"hidden":false,"merged":[]}
[null,"1. Interventions maximales de l’assurance pour des dispostifs de stomie"]
[null,"TYPES DE STOMIE","Prestation","Type","Phase","Phase d'apprentissage ou phase de suivi","Montant en € pour 2021"]
[{"$f":"_xlfn.CONCAT(D3,E3,B3)","v":"Dispositifs de stomiePhase d'apprentissageColostomie"},"Colostomie",655336,"Dispositifs de stomie","Phase d'apprentissage","au cours des trois premiers mois",769.9,{"$f":"_xlfn.CONCAT(C3, \" - \",B3,\" - \",E3,\" - \",D3)","v":"655336 - Colostomie - Phase d'apprentissage - Dispositifs de stomie"}]
["Dispositifs de stomiePhase de suiviColostomie","Colostomie",655351,"Dispositifs de stomie","Phase de suivi","à partir du 4ème mois",627.13,{"$f":"_xlfn.CONCAT(C4, \" - \",B4,\" - \",E4,\" - \",D4)","v":"655351 - Colostomie - Phase de suivi - Dispositifs de stomie"}]
["Dispositifs de stomiePhase d'apprentissageIléostomie","Iléostomie",655373,"Dispositifs de stomie","Phase d'apprentissage","au cours des trois premiers mois",673.13,"655373 - Iléostomie - Phase d'apprentissage - Dispositifs de stomie"]
["Dispositifs de stomiePhase de suiviIléostomie","Iléostomie",655432,"Dispositifs de stomie","Phase de suivi","à partir du 4ème mois",530.36,"655432 - Iléostomie - Phase de suivi - Dispositifs de stomie"]
["Dispositifs de stomiePhase d'apprentissageUrostomie","Urostomie",655454,"Dispositifs de stomie","Phase d'apprentissage","au cours des trois premiers mois",747.97,"655454 - Urostomie - Phase d'apprentissage - Dispositifs de stomie"]
[null,"2. Interventions maximales de l’assurance pour des dispostifs de stomie en cas d’utilisation de systèmes convexes/concaves"]
[null,"Types de stomie","Prestation","Type","Phase","Phase d'apprentissage ou phase de suivi","Montant en € pour 2021"]
[{"$f":"_xlfn.CONCAT(D10,E10,B10)","v":"Convexes/ConcavesPhase d'apprentissageColostomie"},"Colostomie",655491,"Convexes/Concaves","Phase d'apprentissage","au cours des trois premiers mois",953.24,"655491 - Colostomie - Phase d'apprentissage - Convexes/Concaves"]
["Convexes/ConcavesPhase de suiviColostomie","Colostomie",655550,"Convexes/Concaves","Phase de suivi","à partir du 4ème mois",810.47,"655550 - Colostomie - Phase de suivi - Convexes/Concaves"]
["Convexes/ConcavesPhase d'apprentissageIléostomie","Iléostomie",655572,"Convexes/Concaves","Phase d'apprentissage","au cours des trois premiers mois",856.48,"655572 - Iléostomie - Phase d'apprentissage - Convexes/Concaves"]
["Convexes/ConcavesPhase de suiviIléostomie","Iléostomie",655594,"Convexes/Concaves","Phase de suivi","à partir du 4ème mois",713.7,"655594 - Iléostomie - Phase de suivi - Convexes/Concaves"]
["Convexes/ConcavesPhase d'apprentissageUrostomie","Urostomie",655631,"Convexes/Concaves","Phase d'apprentissage","au cours des trois premiers mois",931.31,"655631 - Urostomie - Phase d'apprentissage - Convexes/Concaves"]
["Convexes/ConcavesPhase de suiviUrostomie","Urostomie",655653,"Convexes/Concaves","Phase de suivi","à partir du 4ème mois",788.54,"655653 - Urostomie - Phase de suivi - Convexes/Concaves"]
[null,"3. Interventions maximales de l’assurance pour des dispostifs de stomie en cas de situation exceptionnelle"]
[null,"Types de stomie","Prestation","Type","Phase","Phase d'apprentissage ou phase de suivi","Montant en € pour 2021"]
[{"$f":"_xlfn.CONCAT(D18,E18,B18)","v":"Situation exceptionnellePhase de suiviColostomie"},"Colostomie",655675,"Situation exceptionnelle","Phase de suivi","à partir du 4ème mois",877.3,"655675 - Colostomie - Phase de suivi - Situation exceptionnelle"]
[{"$f":"_xlfn.CONCAT(D19,E19,B19)","v":"Situation exceptionnellePhase de suiviIléostomie"},"Iléostomie",655896,"Situation exceptionnelle","Phase de suivi","à partir du 4ème mois",780.53,"655896 - Iléostomie - Phase de suivi - Situation exceptionnelle"]
[{"$f":"_xlfn.CONCAT(D20,E20,B20)","v":"Situation exceptionnellePhase de suiviUrostomie"},"Urostomie",655911,"Situation exceptionnelle","Phase de suivi","à partir du 4ème mois",855.37,"655911 - Urostomie - Phase de suivi - Situation exceptionnelle"]
[null,"4.Interventions maximales de l’assurance pour des dispostifs de stomie en cas d'une situation exceptionnelle et d’utilisation de systèmes convexes/concaves"]
[null,"Types de stomie","Prestation","Type","Phase","Phase d'apprentissage ou phase de suivi","Montant en € pour 2021"]
[{"$f":"_xlfn.CONCAT(D23,E23,B23)","v":"Situation exceptionnelle et d’utilisation de systèmes convexes/concavesPhase de suiviColostomie"},"Colostomie",655933,"Situation exceptionnelle et d’utilisation de systèmes convexes/concaves","Phase de suivi","à partir du 4ème mois",1060.6400000000001,"655933 - Colostomie - Phase de suivi - Situation exceptionnelle et d’utilisation de systèmes convexes/concaves"]
[{"$f":"_xlfn.CONCAT(D24,E24,B24)","v":"Situation exceptionnelle et d’utilisation de systèmes convexes/concavesPhase de suiviIléostomie"},"Iléostomie",655955,"Situation exceptionnelle et d’utilisation de systèmes convexes/concaves","Phase de suivi","à partir du 4ème mois",963.87,"655955 - Iléostomie - Phase de suivi - Situation exceptionnelle et d’utilisation de systèmes convexes/concaves"]
[{"$f":"_xlfn.CONCAT(D25,E25,B25)","v":"Situation exceptionnelle et d’utilisation de systèmes convexes/concavesPhase de suiviUrostomie"},"Urostomie",655970,"Situation exceptionnelle et d’utilisation de systèmes convexes/concaves","Phase de suivi","à partir du 4ème mois",1038.71,"655970 - Urostomie - Phase de suivi - Situation exceptionnelle et d’utilisation de systèmes convexes/concaves"]
[null,"5. Interventions spécifiques maximales de l’assurance pour l’irrigation"]
[null,"Types de stomie","Prestation","Type","Phase","Phase d'apprentissage ou phase de suivi","Montant en € pour 2021"]
[{"$f":"_xlfn.CONCAT(D28,E28,B28)","v":"IrrigationIrrigation 6MIrrigation"},"Irrigation",656073,"Irrigation","Irrigation 6M","set d'irrigation manuelle, par 6 mois",139.28,"656073 - Irrigation - Irrigation 6M - Irrigation"]
[{"$f":"_xlfn.CONCAT(D29,E29,B29)","v":"IrrigationIrrigation 36MIrrigation"},"Irrigation",656095,"Irrigation","Irrigation 36M","pompe d’irrigation, par période de 36 mois",337.1,"656095 - Irrigation - Irrigation 36M - Irrigation"]

{"sheet":"Gebruiksaanwijzing","index":5,"n_rows":67,"n_cols":13,"rows_kept":67,"cut":false,"hidden":false,"merged":[[29,0,29,1],[6,0,7,17],[32,0,32,17],[13,0,13,15],[24,0,24,15],[8,0,8,1],[12,0,12,1],[20,0,20,1],[31,0,31,15],[25,0,25,17],[22,0,22,17],[36,0,36,15],[38,0,38,15],[60,0,61,15],[66,0,66,15],[59,0,59,1],[64,0,64,1]]}
[]
[]
[]
[]
[]
[]
["Deze gebruiksaanwijzing legt uit hoe je de B. Braun Stoma Calculator eenvoudig en optimaal kan gebruiken voor het beheren van het forfaitaire bedrag voor stomamateriaal."]
[]
["Stap 1"]
[]
["Maak de berekening die je wilt uitvoeren persoonlijker door de naam van de stomagebruiker in te vullen:"]
[]
["Stap 2"]
["Duid in het lichtpaarse menu aan welke situatie voor jou(w gebruiker) van toepassing is:"]
[]
[null,"1. Het type materiaal dat je nodig hebt",null,null,null,null,"2. In welke fase je (jouw gebruiker zich) bevindt",null,null,null,null,null,"3. Welke stoma van toepassing is"]
[]
[]
[]
[]
["Stap 3"]
[]
["Onder het paarse menu (zie vorige stap) wordt er een samenvatting weergegeven van de gemaakte keuzes, vergezeld met het bijhorende prestatienummer.             Daarnaast krijg je:"]
[]
["1. De Portefeuille waarde die het forfaitaire bedrag weergeeft dat door de gebruiker gespendeerd kan worden in de aangeduide fase."]
["2. Het Reeds gespendeerd bedrag dat de mogelijkheid geeft om een bedrag in te vullen die al door de gebruiker werd gespendeerd tijdens de periode aan vergoedbare stomamaterialen."]
[]
[]
[]
["Stap 4"]
[]
["1. Ga naar het tabblad 'Products' en zoek het artikelnummer op in de assortimentslijst.  "]
["2. Kopieer het artikelnummer en ga terug naar tabblad 'Calculator NL' waar je het artikelnummer in de grijze voorziene ruimte onder 'artikelnummer' kan ingeven."]
["Indien je het artikelnummer kent kan je deze direct intypen of de dropdown menu gebruiken."]
[]
["Bij 'Aantal eenheden' geef je vervolgens het aantal stuks in die je nodig hebt. Opgelet, dit is niet het aantal verpakkingen."]
["Bijv. De gebruiker wil 1 doos Flexima® Key beige colozakjes, je ziet in de kolom 'aantal/doos' staan dat er 30 zakjes in een doos zitten. Hierbij geef je dus '30' aan in de kolom 'Aantal eenheden'."]
[]
["De Calculator geeft je nu de resterende waarde weer die nog overschiet van het forfaitaire bedrag waar de gebruiker recht op heeft.             "]
["Het houdt rekening met zowel het reeds gespendeerde bedrag tijdens de periode, als de nieuwe producten die ingegeven werden."]
[]
[]
[]
[]
[]
[]
[]
[]
[]
[]
[]
[]
[]
[]
[]
[]
[]
[]
[]
["Stap 5"]
["Je kan deze lijst ook afdrukken en opslaan door op de knop 'Exporteer PDF' te klikken."]
[]
[]
[]
["Stap 6"]
[]
["Laat de gebruiker weten dat de Stoma Calculator onderdeel is van StomaWiki, een bron van informatie waar vragen van gebruikers over het leven met een stoma beantwoord worden."]

{"sheet":"Mode d'emploi","index":6,"n_rows":67,"n_cols":13,"rows_kept":67,"cut":false,"hidden":false,"merged":[[6,0,7,17],[13,0,13,15],[12,0,12,2],[20,0,20,2],[66,0,66,15],[22,0,22,17],[24,0,24,15],[25,0,25,17],[31,0,31,15],[32,0,32,17],[29,0,29,2],[36,0,36,15],[38,0,38,15],[59,0,59,1],[60,0,61,15],[64,0,64,1]]}
[]
[]
[]
[]
[]
[]
["Ce guide de l'utilisateur explique comment utiliser le calculateur de stomie B. Braun de manière simple et optimale pour gérer le montant forfaitaire pour le matériel de stomie."]
[]
["Première étape"]
[]
["Rendez le calcul souhaité plus personnel en saisissant le nom de l'utilisateur de stomie :"]
[]
["Deuxième étape"]
["Indiquez dans le menu violet clair quelle situation s'applique à vous: "]
[]
[null,"1. Le type de matériel dont vous avez besoin",null,null,null,null,"2. Dans quelle phase vous (votre utilisateur) se trouve-t-il ?",null,null,null,null,null,"3. Quelle stomie est applicable"]
[]
[]
[]
[]
["Troisième étape"]
[]
["Dans le menu violet (voir étape précédente), un résumé des choix effectués est affiché, ainsi que le numéro de performance correspondant.                                                      En outre, vous obtenez le :"]
[]
["1. La valeur du portefeuille indique la somme forfaitaire qui peut être dépensée par l'utilisateur dans la phase indiquée."]
["2. Montant déjà dépensé donne la possibilité de remplir un montant déjà dépensé par l'utilisateur pendant la période sur les matériaux de stomie remboursables."]
[]
[]
[]
["Quatrième étape"]
[]
["1. Allez dans l'onglet \"Products\" et recherchez le numéro de l'article dans la liste de l'assortiment.  "]
["2. Copiez le numéro de l'article et retournez à l'onglet \"Calculatrice FR\" où vous pouvez entrer le numéro de l'article dans l'espace gris prévu sous \"Numéro de l'article\"."]
["Si vous connaissez déjà le numéro de l'article, vous pouvez également le saisir directement ou utiliser le menu déroulant pour le rechercher."]
[]
["Dans la rubrique \"Nombre d'unités\", entrez le nombre d'unités dont vous avez besoin. Veuillez noter qu'il ne s'agit pas du nombre de paquets."]
["Par exemple : L'utilisateur veut 1 boîte de sacs flexima key beige colo, vous voyez dans la colonne 'nombre/boîte' qu'il y a 30 sacs dans une boîte. Dans ce cas, vous saisissez \"30\" dans la colonne \"nombre d'unités\"."]
[]
["Le calculateur vous indiquera alors la valeur restante de la somme forfaitaire à laquelle l'utilisateur a droit.  "]
["Cela tient compte à la fois du montant déjà dépensé pendant la période et des nouveaux produits entrés."]
[]
[]
[]
[]
[]
[]
[]
[]
[]
[]
[]
[]
[]
[]
[]
[]
[]
[]
[]
["Stap 5"]
["Vous pouvez également imprimer et sauvegarder cette liste en cliquant sur le bouton \"Exporter en PDF\"."]
[]
[]
[]
["Stap 6"]
[]
["Faites savoir à la personne que le StomaCalculator fait partie de StomaWiki, une ressource qui répond aux questions des utilisateurs sur la vie avec une stomie."]

{"sheet":"DEVELOPMENT TAB","index":7,"n_rows":18,"n_cols":3,"rows_kept":18,"cut":false,"hidden":true,"merged":[]}
["TYPE",null,"TYPE"]
["Stomahulpmiddelen",null,"Dispositifs de stomie"]
["Convex/Concaaf",null,"Convexes/Concaves"]
["Uitzonderlijke toestand",null,"Situation exceptionnelle"]
["Uitzonderlijke toestand & convex/concaaf",null,"Situation exceptionnelle et d’utilisation de systèmes convexes/concaves"]
["Irrigatie",null,"Irrigation"]
[]
["PERIODE",null,"INDICATION DE TEMPS"]
["Leerfase",null,"Phase d'apprentissage"]
["Opvolgfase",null,"Phase de suivi"]
["Irrigatie 6M",null,"Irrigation 6M"]
["Irrigatie 36M",null,"Irrigation 36M"]
[]
["SOORT STOMA",null,"SORTE DE STOMIE"]
["Colostoma",null,"Colostomie"]
["Ileostoma",null,"iléostomie"]
["Urostoma",null,"Urostomie"]
["Irrigatie",null,"Irrigation"]